fUSD/lending_fUSD_20260525
["ID","MTS","AMOUNT","RATE_DAILY","PERIOD"]
[422982009,1779703832000,-6061.0,0.00013365,2]
[422982057,1779703832000,-984.0,0.00013699,2]
[422982013,1779703832000,-617.9993,0.00013599,2]
[422982025,1779703832000,-984.0,0.00013699,2]
[422982023,1779703832000,-984.0,0.00013699,2]
[422982017,1779703832000,-2500.0,0.00013699,2]
[422982010,1779703832000,-931.0,0.00013365,2]
[422982021,1779703832000,-984.0,0.00013699,2]
[422982015,1779703832000,-200.0,0.00013699,2]
[422982012,1779703832000,-316.96,0.00013529,2]
[422982019,1779703832000,-166.66,0.00013699,2]
[422982073,1779703833000,-1476.28210165,0.000139,2]
[422982075,1779703833000,-1500.0,0.000139,5]
[422982105,1779703833000,-1237.08734021,0.00014,2]
[422982079,1779703833000,-2500.0,0.000139,2]
[422982081,1779703833000,-166.77702594,0.00013967,2]
[422982071,1779703833000,-166.66,0.00013836,2]
[422982082,1779703833000,-166.66,0.00013973,2]
[422982084,1779703833000,-295.22359984,0.0001399,2]
[422982086,1779703833000,-420.0,0.00014,5]
[422982099,1779703833000,-161214.0142093,0.00014,2]
[422982077,1779703833000,-2486.93006715,0.000139,2]
[422982101,1779703833000,-1254.41808677,0.00014,2]
[422982103,1779703833000,-901.23418243,0.00014,2]
[422982088,1779703833000,-150.0,0.00014,2]
[422982115,1779703833000,-3818.60026185,0.00014,2]
[422982113,1779703833000,-895.41,0.00014,2]
[422982111,1779703833000,-951.59844034,0.00014,2]
[422982109,1779703833000,-889.89658391,0.00014,2]
[422982092,1779703833000,-192349.41563247,0.00014,2]
[422982096,1779703833000,-26827.4908426,0.00014,2]
[422982107,1779703833000,-2566.60401429,0.00014,2]
[422982090,1779703833000,-250.0,0.00014,2]
[422982094,1779703833000,-7780.66967876,0.00014,2]
[422982228,1779703838000,-927.11,0.00014,2]
[422982227,1779703838000,-250.0,0.00011431,2]
[422982330,1779703840000,-19102.69328615,0.00014,2]
[422982329,1779703840000,-1713.08386424,0.00014,2]
[422982349,1779703843000,-796.18494401,0.00014,2]
[422982347,1779703843000,-3636.0,0.00013489,2]
[422982348,1779703843000,-996.10004613,0.00014,2]
[422982350,1779703844000,-577.15,0.00014,2]
[422982355,1779703846000,-1148.9113853,0.000139,2]
[422982354,1779703846000,-558.30586174,0.000139,2]
[422982357,1779703846000,-3998.75590436,0.00014,2]
[422982359,1779703846000,-7780.1238,0.00014,2]
[422982360,1779703846000,-3568.29954394,0.00014,2]
[422982358,1779703846000,-802994.88288093,0.00014,2]
[422982356,1779703846000,-264.95533405,0.000139,2]
[422982456,1779704566000,-676.03917321,9.04e-05,2]
[422982466,1779704856000,-150.0,0.00010067,2]
[422982467,1779704856000,-150.0,0.00010378,2]
[422982468,1779704856000,-177.88848839,0.00010647,2]
[422982470,1779704856000,-25611.48044271,0.000107,2]
[422982473,1779704856000,-150.0,0.0001256,2]
[422982471,1779704856000,-1680.0,0.00011769,2]
[422982472,1779704856000,-200.0,0.00012014,2]
[422982474,1779704856000,-231.34,0.00012582,2]
[422982476,1779704856000,-2351.0,0.00012946,2]
[422982475,1779704856000,-2000.0,0.0001261,2]
[422982477,1779704856000,-165.43,0.00013086,2]
[422982469,1779704856000,-1200.0,0.00010699,2]
[422982480,1779704856000,-1400.0,0.00013356,2]
[422982478,1779704856000,-500.0,0.00013103,2]
[422982488,1779704856000,-251.37092639,0.00013488,2]
[422982489,1779704856000,-150.0,0.00013488,2]
[422982485,1779704856000,-204.2,0.00013445,2]
[422982484,1779704856000,-208.87966228,0.00013398,2]
[422982487,1779704856000,-150.0,0.00013488,2]
[422982482,1779704856000,-5169.0,0.0001339,2]
[422982483,1779704856000,-160.0,0.00013395,2]
[422982479,1779704856000,-200.0,0.00013199,2]
[422982481,1779704856000,-600.0,0.00013356,2]
[422982486,1779704856000,-150.0,0.00013487,2]
[422982505,1779704857000,-9999.99,0.00013489,2]
[422982500,1779704857000,-1355.0,0.00013489,2]
[422982506,1779704857000,-9999.99,0.00013489,2]
[422982504,1779704857000,-1271.0,0.00013489,2]
[422982501,1779704857000,-928.0,0.00013489,2]
[422982503,1779704857000,-519.0,0.00013489,2]
[422982502,1779704857000,-626.0,0.00013489,2]
[422982498,1779704857000,-150.0,0.00013488,2]
[422982493,1779704857000,-150.0,0.00013488,2]
[422982497,1779704857000,-150.0,0.00013488,2]
[422982496,1779704857000,-150.0,0.00013488,2]
[422982494,1779704857000,-150.0,0.00013488,2]
[422982495,1779704857000,-150.0,0.00013488,2]
[422982492,1779704857000,-150.0,0.00013488,2]
[422982491,1779704857000,-150.0,0.00013488,2]
[422982490,1779704857000,-150.0,0.00013488,2]
[422982507,1779704857000,-6061.0,0.00013489,2]
[422982499,1779704857000,-163.49,0.00013488,2]
[422982509,1779704857000,-418.0,0.00013489,2]
[422982513,1779704857000,-26486.65,0.00013608,2]
[422982510,1779704857000,-934.559,0.00013489,2]
[422982529,1779704857000,-1328.65389144,0.00013822,2]
[422982508,1779704857000,-3636.0,0.00013489,2]
[422982527,1779704857000,-5694.3325,0.000138,2]
[422982525,1779704857000,-5000.0,0.00013774,2]
[422982526,1779704857000,-412.79675156,0.00013774,2]
[422982524,1779704857000,-2500.0,0.00013774,2]
[422982523,1779704857000,-4173.0173,0.00013774,2]
[422982521,1779704857000,-600.0,0.000137,5]
[422982520,1779704857000,-827.18086267,0.00013699,2]
[422982528,1779704857000,-1300.0,0.000138,5]
[422982519,1779704857000,-263.39072739,0.00013699,2]
[422982518,1779704857000,-370.65417125,0.00013699,2]
[422982516,1779704857000,-200.0,0.00013699,2]
[422982517,1779704857000,-933.69403119,0.00013699,2]
[422982515,1779704857000,-166.66,0.00013699,2]
[422982512,1779704857000,-1115.22,0.00013608,2]
[422982514,1779704857000,-165.43,0.00013626,2]
[422982511,1779704857000,-1224.0,0.00013489,2]
[422982522,1779704857000,-150.0,0.00013737,2]
[422982543,1779704858000,-500.0,0.00013873,2]
[422982544,1779704858000,-167.37977558,0.00013873,2]
[422982542,1779704858000,-162.55052264,0.00013873,2]
[422982541,1779704858000,-300.26279868,0.00013873,2]
[422982540,1779704858000,-344.18986782,0.00013873,2]
[422982539,1779704858000,-500.0,0.00013873,2]
[422982538,1779704858000,-500.0,0.00013873,2]
[422982533,1779704858000,-151.0,0.0001387,2]
[422982536,1779704858000,-341.07411956,0.00013873,2]
[422982534,1779704858000,-151.0,0.00013871,2]
[422982535,1779704858000,-500.0,0.00013873,2]
[422982532,1779704858000,-196.81573323,0.00013864,2]
[422982530,1779704858000,-166.66,0.00013836,2]
[422982531,1779704858000,-14051.37768842,0.0001386,2]
[422982545,1779704858000,-500.0,0.00013873,2]
[422982537,1779704858000,-641.25507848,0.00013873,2]
[422982547,1779704858000,-500.0,0.00013873,2]
[422982563,1779704858000,-500.0,0.00013873,2]
[422982548,1779704858000,-500.0,0.00013873,2]
[422982564,1779704858000,-500.0,0.00013873,2]
[422982562,1779704858000,-500.0,0.00013873,2]
[422982546,1779704858000,-596.14396397,0.00013873,2]
[422982561,1779704858000,-500.0,0.00013873,2]
[422982560,1779704858000,-500.0,0.00013873,2]
[422982558,1779704858000,-500.0,0.00013873,2]
[422982559,1779704858000,-500.0,0.00013873,2]
[422982557,1779704858000,-500.0,0.00013873,2]
[422982565,1779704858000,-139.39084688,0.00013873,2]
[422982555,1779704858000,-500.0,0.00013873,2]
[422982554,1779704858000,-500.0,0.00013873,2]
[422982553,1779704858000,-500.0,0.00013873,2]
[422982551,1779704858000,-601.91458675,0.00013873,2]
[422982552,1779704858000,-500.0,0.00013873,2]
[422982550,1779704858000,-500.0,0.00013873,2]
[422982549,1779704858000,-500.0,0.00013873,2]
[422982556,1779704858000,-500.0,0.00013873,2]
[422982584,1779705031000,-255.75980045,0.000106,2]
[422982583,1779705031000,-751.34196388,0.000106,2]
[422982580,1779705031000,-3249.41857995,0.000106,2]
[422982582,1779705031000,-22742.16554982,0.000106,2]
[422982577,1779705031000,-810.92822797,0.00010599,2]
[422982581,1779705031000,-55496.31786119,0.000106,2]
[422982578,1779705031000,-150.0,0.00010599,2]
[422982576,1779705031000,-389.07177203,0.00010599,2]
[422982575,1779705031000,-192.65314423,0.000104,2]
[422982579,1779705031000,-60752.17113877,0.000106,2]
[422982585,1779705031000,-619.90151453,0.000106,2]
[422982587,1779705031000,-525.62526335,0.000106,2]
[422982589,1779705031000,-1950.17403298,0.000106,2]
[422982588,1779705031000,-739.83242181,0.000106,2]
[422982590,1779705031000,-4689.97550058,0.000106,2]
[422982591,1779705031000,-301.48251273,0.000106,2]
[422982594,1779705031000,-2412.11522595,0.000106,2]
[422982595,1779705031000,-40450.56415553,0.000106,2]
[422982593,1779705031000,-1206.96082785,0.000106,2]
[422982592,1779705031000,-1575.73615394,0.000106,2]
[422982596,1779705031000,-665.29685613,0.000106,2]
[422982597,1779705031000,-1294.64297778,0.000106,2]
[422982586,1779705031000,-496.00662363,0.000106,2]
[422982810,1779705033000,290.16,6.241e-05,2]
[422982866,1779705033000,290.16,6.898e-05,2]
[422982838,1779705033000,290.16,6.57e-05,2]
[422982877,1779705034000,290.16,8.541e-05,2]
[422982876,1779705034000,290.16,8.212e-05,2]
[422982875,1779705034000,290.16,7.884e-05,2]
[422982874,1779705034000,290.16,7.555e-05,2]
[422982873,1779705034000,290.16,7.227e-05,2]
[422982887,1779705037000,-290.16,0.00010183,2]
[422982883,1779705037000,-290.16,8.869e-05,2]
[422982885,1779705037000,-290.16,9.526e-05,2]
[422982886,1779705037000,-290.16,9.855e-05,2]
[422982884,1779705037000,-290.16,9.198e-05,2]
[422982889,1779705037000,-1021.98568636,0.000106,2]
[422982891,1779705037000,-552.93113016,0.000106,2]
[422982888,1779705037000,-290.16,0.00010512,2]
[422982894,1779705037000,-4405.66696543,0.000106,2]
[422982893,1779705037000,-571.18927001,0.000106,2]
[422982890,1779705037000,-503.47737862,0.000106,2]
[422982892,1779705037000,-446.26987052,0.000106,2]
[422982895,1779705037000,-2621.19849465,0.000106,2]
[422982915,1779705040000,-179.05823863,0.000106,2]
[422982925,1779705042000,-3548.76205583,0.000106,2]
[422982927,1779705042000,-20916.35954343,0.000106,2]
[422982926,1779705042000,-2193.31730551,0.000106,2]
[422982929,1779705042000,-160.0,0.00010604,2]
[422982931,1779705042000,-339.52427211,0.00011099,2]
[422982930,1779705042000,-290.16,0.0001084,2]
[422982932,1779705042000,-339.52427204,0.00011099,2]
[422982928,1779705042000,-208.87966228,0.000106,2]
[422982937,1779705042000,-1680.0,0.00011659,2]
[422982934,1779705042000,-339.52427204,0.00011478,2]
[422982938,1779705042000,-290.16,0.00011826,2]
[422982933,1779705042000,-290.16,0.00011169,2]
[422982936,1779705042000,-255.0,0.00011627,2]
[422982940,1779705042000,-290.16,0.00012154,2]
[422982950,1779705042000,-438.62506687,0.00013012,2]
[422982947,1779705042000,-200.0,0.00012991,2]
[422982935,1779705042000,-290.16,0.00011497,2]
[422982948,1779705042000,-1463.8054912,0.00013012,2]
[422982945,1779705042000,-2351.0,0.00012825,2]
[422982946,1779705042000,-339.52427204,0.00012944,2]
[422982949,1779705042000,-409.53,0.00013012,2]
[422982944,1779705042000,-433.0,0.00012751,2]
[422982942,1779705042000,-290.16,0.00012483,2]
[422982941,1779705042000,-339.52427204,0.00012456,2]
[422982939,1779705042000,-339.52427204,0.00011967,2]
[422982943,1779705042000,-422.7,0.00012537,2]
[422982955,1779705043000,-366.16,0.00013335,2]
[422982951,1779705043000,-1326.44346354,0.00013012,2]
[422982952,1779705043000,-287.97696844,0.00013012,2]
[422982953,1779705043000,-1980.56900995,0.00013012,2]
[422982954,1779705043000,-500.0,0.00013082,2]
[422982956,1779705043000,-194.35,0.00013335,2]
[422982957,1779705043000,-500.0,0.00013356,2]
[422982958,1779705043000,-1300.0,0.00013356,2]
[422982966,1779705043000,-5277.90667014,0.00013773,2]
[422982959,1779705043000,-215.38528485,0.00013404,2]
[422982960,1779705043000,-339.52427204,0.00013433,2]
[422982967,1779705043000,-456.92043422,0.00013773,2]
[422982965,1779705043000,-500.34,0.00013699,2]
[422982968,1779705043000,-833.26908932,0.00013773,2]
[422982963,1779705043000,-3405.58086797,0.00013489,2]
[422982962,1779705043000,-230.41913203,0.00013489,2]
[422982964,1779705043000,-1400.52537883,0.00013663,2]
[422982961,1779705043000,-3547.0,0.00013489,2]
[422982981,1779705045000,-781.26956769,0.00013439,2]
[422982984,1779705045000,-2818.63276393,0.00013773,2]
[422982982,1779705045000,-576.47645733,0.00013439,2]
[422982986,1779705045000,-492.98298303,0.00013773,2]
[422982987,1779705045000,-366.69020406,0.00013773,2]
[422982985,1779705045000,-1939.38192749,0.00013773,2]
[422982983,1779705045000,-4703.25397498,0.00013439,2]
[422982989,1779705046000,-511.63701206,0.00013773,2]
[422982988,1779705046000,-381.23466672,0.00013773,2]
[422983028,1779706231000,-250.0,0.00010498,2]
[422983025,1779706231000,-213.93849686,0.0001047,2]
[422983024,1779706231000,-150.42,0.00010069,2]
[422983027,1779706231000,-448.42004428,0.00010498,2]
[422983026,1779706231000,-109.85055798,0.00010498,2]
[422983030,1779706231000,-13.48122902,0.00010499,2]
[422983031,1779706231000,-486.51877098,0.00010499,2]
[422983033,1779706231000,-183.04559647,0.00010499,2]
[422983032,1779706231000,-150.0,0.00010499,2]
[422983034,1779706231000,-316.95440353,0.00010499,2]
[422983035,1779706231000,-99.04781285,0.00010499,2]
[422983036,1779706231000,-369.98931999,0.00010499,2]
[422983029,1779706231000,-391.72939774,0.00010498,2]
[422983038,1779706232000,-479.03713284,0.00010499,2]
[422983037,1779706232000,-30.96286716,0.00010499,2]
[422983062,1779706238000,-20.96286716,0.00010499,2]
[422983063,1779706238000,-500.0,0.00010499,2]
[422983064,1779706238000,-38.56713284,0.00010499,2]
[422983065,1779706238000,-329.16,0.00010499,2]
[422983085,1779706240000,-500.0,0.00010499,2]
[422983078,1779706240000,-132.27286716,0.00010499,2]
[422983089,1779706240000,-356.88868115,0.00010499,2]
[422983088,1779706240000,-143.11131885,0.00010499,2]
[422983086,1779706240000,-500.0,0.00010499,2]
[422983087,1779706240000,-500.0,0.00010499,2]
[422983083,1779706240000,-500.0,0.00010499,2]
[422983081,1779706240000,-500.0,0.00010499,2]
[422983079,1779706240000,-500.0,0.00010499,2]
[422983080,1779706240000,-500.0,0.00010499,2]
[422983090,1779706240000,-500.0,0.00010499,2]
[422983084,1779706240000,-500.0,0.00010499,2]
[422983082,1779706240000,-500.0,0.00010499,2]
[422983095,1779706240000,-500.0,0.00010499,2]
[422983093,1779706240000,-500.0,0.00010499,2]
[422983100,1779706240000,-408.15346862,0.00010499,2]
[422983099,1779706240000,-500.0,0.00010499,2]
[422983097,1779706240000,-500.0,0.00010499,2]
[422983096,1779706240000,-500.0,0.00010499,2]
[422983098,1779706240000,-500.0,0.00010499,2]
[422983092,1779706240000,-500.0,0.00010499,2]
[422983091,1779706240000,-500.0,0.00010499,2]
[422983094,1779706240000,-500.0,0.00010499,2]
[422983126,1779706243000,-500.0,0.00010499,2]
[422983127,1779706243000,-500.0,0.00010499,2]
[422983130,1779706243000,-500.0,0.00010499,2]
[422983128,1779706243000,-500.0,0.00010499,2]
[422983131,1779706243000,-500.0,0.00010499,2]
[422983146,1779706243000,-500.0,0.00010499,2]
[422983133,1779706243000,-500.0,0.00010499,2]
[422983139,1779706243000,-500.0,0.00010499,2]
[422983138,1779706243000,-500.0,0.00010499,2]
[422983145,1779706243000,-500.0,0.00010499,2]
[422983129,1779706243000,-500.0,0.00010499,2]
[422983144,1779706243000,-500.0,0.00010499,2]
[422983134,1779706243000,-500.0,0.00010499,2]
[422983125,1779706243000,-500.0,0.00010499,2]
[422983115,1779706243000,-500.0,0.00010499,2]
[422983121,1779706243000,-500.0,0.00010499,2]
[422983123,1779706243000,-500.0,0.00010499,2]
[422983132,1779706243000,-500.0,0.00010499,2]
[422983122,1779706243000,-500.0,0.00010499,2]
[422983114,1779706243000,-500.0,0.00010499,2]
[422983113,1779706243000,-500.0,0.00010499,2]
[422983112,1779706243000,-500.0,0.00010499,2]
[422983116,1779706243000,-500.0,0.00010499,2]
[422983120,1779706243000,-500.0,0.00010499,2]
[422983119,1779706243000,-500.0,0.00010499,2]
[422983117,1779706243000,-500.0,0.00010499,2]
[422983118,1779706243000,-500.0,0.00010499,2]
[422983111,1779706243000,-91.84653138,0.00010499,2]
[422983140,1779706243000,-500.0,0.00010499,2]
[422983124,1779706243000,-500.0,0.00010499,2]
[422983135,1779706243000,-500.0,0.00010499,2]
[422983171,1779706243000,-177.34932933,0.00010499,2]
[422983137,1779706243000,-500.0,0.00010499,2]
[422983189,1779706243000,-381975.79485943,0.000105,2]
[422983173,1779706243000,-500.0,0.00010499,2]
[422983187,1779706243000,-327.68370289,0.00010499,2]
[422983184,1779706243000,-449.15332607,0.00010499,2]
[422983194,1779706243000,-673.3,0.000105,2]
[422983166,1779706243000,-500.0,0.00010499,2]
[422983168,1779706243000,-500.0,0.00010499,2]
[422983182,1779706243000,-500.0,0.00010499,2]
[422983164,1779706243000,-491.5332607,0.00010499,2]
[422983180,1779706243000,-500.0,0.00010499,2]
[422983177,1779706243000,-500.0,0.00010499,2]
[422983175,1779706243000,-500.0,0.00010499,2]
[422983160,1779706243000,-500.0,0.00010499,2]
[422983159,1779706243000,-500.0,0.00010499,2]
[422983162,1779706243000,-500.0,0.00010499,2]
[422983136,1779706243000,-500.0,0.00010499,2]
[422983158,1779706243000,-500.0,0.00010499,2]
[422983157,1779706243000,-500.0,0.00010499,2]
[422983141,1779706243000,-500.0,0.00010499,2]
[422983142,1779706243000,-500.0,0.00010499,2]
[422983143,1779706243000,-500.0,0.00010499,2]
[422983147,1779706243000,-500.0,0.00010499,2]
[422983148,1779706243000,-500.0,0.00010499,2]
[422983149,1779706243000,-500.0,0.00010499,2]
[422983153,1779706243000,-500.0,0.00010499,2]
[422983156,1779706243000,-500.0,0.00010499,2]
[422983155,1779706243000,-500.0,0.00010499,2]
[422983150,1779706243000,-500.0,0.00010499,2]
[422983152,1779706243000,-500.0,0.00010499,2]
[422983151,1779706243000,-500.0,0.00010499,2]
[422983154,1779706243000,-500.0,0.00010499,2]
[422983199,1779706246000,-7560.78717971,0.000105,2]
[422983201,1779706246000,-1893.12,0.000105,2]
[422983200,1779706246000,-572.01969778,0.000105,2]
[422983203,1779706246000,-619.06266966,0.000105,2]
[422983204,1779706246000,-505.0,0.000105,2]
[422983202,1779706246000,-9769.63196662,0.000105,2]
[422983219,1779706484000,-150.42,8.881e-05,2]
[422983221,1779706798000,216.05,5.395e-05,2]
[422983319,1779706868000,284.27043473,7.945e-05,2]
[422983320,1779706868000,14162.68585627,7.945e-05,2]
[422983318,1779706868000,978.4604,7.945e-05,2]
[422983332,1779707188000,150.42,8.346e-05,2]
[422983346,1779707433000,-150.42,0.00010432,2]
[422983340,1779707433000,-500.0,9.968e-05,2]
[422983342,1779707433000,-221.19152794,0.00010399,2]
[422983341,1779707433000,-221.19152794,0.0001,2]
[422983347,1779707433000,-150.0,0.00010458,2]
[422983353,1779707433000,-14650.33098209,0.00010459,2]
[422983343,1779707433000,-1200.0,0.00010423,2]
[422983352,1779707433000,-56039.55901791,0.00010459,2]
[422983344,1779707433000,-1600.0,0.00010424,2]
[422983349,1779707433000,-300.0,0.00010458,2]
[422983345,1779707433000,-208.87966228,0.00010428,2]
[422983348,1779707433000,-300.0,0.00010458,2]
[422983351,1779707433000,-300.0,0.00010458,2]
[422983355,1779707433000,-200.0,0.00010459,2]
[422983356,1779707433000,-419.64052992,0.00010494,2]
[422983357,1779707433000,-8490.99165856,0.00010494,2]
[422983359,1779707433000,-585.555709,0.00010494,2]
[422983362,1779707433000,-1315.89633602,0.00010494,2]
[422983364,1779707433000,-1943.8475121,0.00010494,2]
[422983457,1779707437000,-301.29934684,0.000105,2]
[422983456,1779707437000,-3473.6067602,0.00010494,2]
[422983458,1779707437000,-151.0,0.000105,2]
[422983462,1779707438000,-594.24630507,0.00010658,2]
[422983461,1779707438000,-17454.40927392,0.00010658,2]
[422983460,1779707438000,-152.5,0.00010557,2]
[422983459,1779707438000,-499.48,0.00010511,2]
[422983520,1779707443000,-570.41417921,0.00010658,2]
[422983521,1779707443000,-9955.7679418,0.00010658,2]
[422983522,1779707443000,-500.0,0.00010711,2]
[422983525,1779707443000,-212.41093957,0.00010758,2]
[422983524,1779707443000,-271.2452291,0.00010758,2]
[422983526,1779707443000,-2202.68906043,0.00010758,2]
[422983523,1779707443000,-167.15,0.00010756,2]
[422983528,1779707443000,-501.0,0.00010986,2]
[422983529,1779707443000,-2415.1,0.00011027,2]
[422983532,1779707443000,-453.13,0.00011333,2]
[422983531,1779707443000,-2415.1,0.00011296,2]
[422983527,1779707443000,-293.19155639,0.00010833,2]
[422983534,1779707443000,-335.42163059,0.00011465,2]
[422983533,1779707443000,-152.5,0.00011437,2]
[422983530,1779707443000,-177.69,0.00011036,2]
[422983537,1779707446000,-499.238292,0.00011465,2]
[422983538,1779707446000,-845.34007741,0.00011465,2]
[422983541,1779707446000,-227.22992259,0.00011565,2]
[422983540,1779707446000,-420.0,0.00011499,2]
[422983539,1779707446000,-255.0,0.00011483,2]
[422983565,1779707561000,167.36,6.002e-05,2]
[422983568,1779707562000,167.36,8.574e-05,2]
[422983567,1779707562000,167.36,7.717e-05,2]
[422983566,1779707562000,167.36,6.859e-05,2]
[422983572,1779708026000,150.42,8.556e-05,2]
[422983653,1779708348000,1572.38,5.857e-05,2]
[422983652,1779708348000,1572.38,5.578e-05,2]
[422983651,1779708348000,1572.38,5.299e-05,2]
[422983654,1779708348000,1572.38,6.136e-05,2]
[422983658,1779708349000,1572.38,7.251e-05,2]
[422983657,1779708349000,1572.38,6.972e-05,2]
[422983656,1779708349000,1572.38,6.693e-05,2]
[422983655,1779708349000,1572.38,6.414e-05,2]
[422983659,1779708349000,1572.38,7.53e-05,2]
[422983663,1779708350000,1572.38,8.645e-05,2]
[422983662,1779708350000,1572.38,8.367e-05,2]
[422983661,1779708350000,1572.38,8.088e-05,2]
[422983660,1779708350000,1572.38,7.809e-05,2]
[422983666,1779708451000,-427.62,9.203e-05,2]
[422983665,1779708451000,-1572.38,8.924e-05,2]
[422983667,1779708481000,-1144.76,9.203e-05,2]
[422983668,1779708481000,-167.36,9.431e-05,2]
[422983669,1779708481000,-1572.38,9.482e-05,2]
[422983671,1779708526000,-1562.74,9.761e-05,2]
[422983670,1779708526000,-937.26,9.726e-05,2]
[422983698,1779708632000,-500.0,0.00010358,2]
[422983694,1779708632000,-169.382,0.00010358,2]
[422983693,1779708632000,-2550.718,0.00010358,2]
[422983692,1779708632000,-6096.41820917,0.00010349,2]
[422983691,1779708632000,-1200.0,0.00010348,2]
[422983687,1779708632000,-1572.38,0.0001004,2]
[422983690,1779708632000,-1572.38,0.00010319,2]
[422983689,1779708632000,-167.36,0.00010289,2]
[422983688,1779708632000,-2498.2,0.00010278,2]
[422983686,1779708632000,-1092.07070508,0.00010027,2]
[422983683,1779708632000,-600.0,0.0001,3]
[422983697,1779708632000,-1000.0,0.00010358,2]
[422983681,1779708632000,-374.97257475,9.872e-05,2]
[422983682,1779708632000,-231.10108895,9.872e-05,2]
[422983679,1779708632000,-731.51383626,9.872e-05,2]
[422983678,1779708632000,-441.85016305,9.859e-05,2]
[422983680,1779708632000,-280.63250004,9.872e-05,2]
[422983677,1779708632000,-35.92983695,9.859e-05,2]
[422983674,1779708632000,-152.5,9.697e-05,2]
[422983676,1779708632000,-209.43,9.854e-05,2]
[422983675,1779708632000,-9.64,9.761e-05,2]
[422983685,1779708632000,-618.31401655,0.00010027,2]
[422983696,1779708632000,-1000.0,0.00010358,2]
[422983684,1779708632000,-787.81527837,0.00010027,2]
[422983699,1779708632000,-500.0,0.00010358,2]
[422983741,1779708632000,-263.49512408,0.00010359,2]
[422983695,1779708632000,-150.0,0.00010358,2]
[422983729,1779708632000,-26854.96811573,0.00010359,2]
[422983731,1779708632000,-161319.87918943,0.00010359,2]
[422983733,1779708632000,-1254.41808677,0.00010359,2]
[422983727,1779708632000,-38660.18052323,0.00010359,2]
[422983725,1779708632000,-315193.63303116,0.00010359,2]
[422983722,1779708632000,-500.0,0.00010358,2]
[422983720,1779708632000,-500.0,0.00010358,2]
[422983718,1779708632000,-276.83702897,0.00010358,2]
[422983714,1779708632000,-500.0,0.00010358,2]
[422983736,1779708632000,-347.63685072,0.00010359,2]
[422983716,1779708632000,-500.0,0.00010358,2]
[422983702,1779708632000,-500.0,0.00010358,2]
[422983701,1779708632000,-500.0,0.00010358,2]
[422983700,1779708632000,-500.0,0.00010358,2]
[422983705,1779708632000,-500.0,0.00010358,2]
[422983704,1779708632000,-500.0,0.00010358,2]
[422983703,1779708632000,-500.0,0.00010358,2]
[422983708,1779708632000,-500.0,0.00010358,2]
[422983706,1779708632000,-500.0,0.00010358,2]
[422983712,1779708632000,-500.0,0.00010358,2]
[422983710,1779708632000,-500.0,0.00010358,2]
[422983756,1779708638000,-549.87,0.00010359,2]
[422983755,1779708638000,-500.0,0.00010359,2]
[422983832,1779708642000,-156.41845874,0.00011325,2]
[422983835,1779708642000,-500.0,0.00011325,2]
[422983833,1779708642000,-500.0,0.00011325,2]
[422983837,1779708642000,-541.74304789,0.00011325,2]
[422983831,1779708642000,-150.0,0.00011325,2]
[422983828,1779708642000,-150.0,0.00011321,2]
[422983830,1779708642000,-150.0,0.00011325,2]
[422983827,1779708642000,-190.7,0.00011233,2]
[422983825,1779708642000,-1618.22,0.00011106,2]
[422983838,1779708642000,-150.0,0.00011325,2]
[422983829,1779708642000,-500.0,0.00011325,2]
[422983834,1779708642000,-500.0,0.00011325,2]
[422983849,1779708642000,-505.26668046,0.0001156,2]